Cogmind - Beta 16.1 @@@ ROGUE MODE // 2026.03.27 @ 12:02:13 Player: Ez Result: Destroyed by H-55 Commando with Gauss Rifle Performance ------------- Evolutions (0) 0 Regions Visited (3) 600 Robots Destroyed (12) 60 Value Destroyed (176) 176 Prototype IDs (23) 460 Alien Tech Used (0) 0 Bonus (300) 300 TOTAL SCORE: 1596 Bonus ------- Aligned with FarCom 300 Cogmind --------- Core Integrity 0/250 Matter 124/300 Energy 100/100 System Corruption 4% Temperature Cool (0) Movement Walking (260) Ox2 Location -10/Exiles Parts ------- > --- POWER (1) -------- (None) > --- PROPULSION (2) --- Aluminum Leg > --- UTILITY (2) ------ Large Storage Unit > --- WEAPON (2) ------- Beam Cannon Mining Claw > --- INVENTORY (15) --- Light Treads Light Treads Light Treads Flying Fortress v7 Light Armor Plating YOLO Cannon Assault Rifle Assault Rifle Field Lobotomy Kit (5) Mining Claw Peak State ------------ > --- POWER ------------ Ion Engine > --- PROPULSION ------- Aluminum Leg Aluminum Leg > --- UTILITY ---------- Heat Sink Large Storage Unit > --- WEAPON ----------- Beam Cannon Mining Claw > --- INVENTORY -------- Light Treads Light Treads Light Treads Aluminum Leg Flying Fortress v7 Light Armor Plating YOLO Cannon Assault Rifle Assault Rifle Field Lobotomy Kit Mining Claw [Rating: 14] Favorites ----------- Power Ion Engine Engine Ion Engine Propulsion Aluminum Leg Treads Light Treads Leg Aluminum Leg Utility Large Storage Unit Device Heat Sink Storage Large Storage Unit Weapon Assault Rifle Energy Cannon Beam Cannon Ballistic Gun Assault Rifle Slashing Weapon Mining Claw Build | -11 -10 -10 -10 ------- Run | Yrd Mat Min Exi Slots Evolved . | . . . . Power . | . . . . Propulsion . | . . . . Utility . | . . . . Weapon . | . . . . Parts Attached 22 | 6 15 . 1 Power 3 | 1 2 . . Engine 3 | 1 2 . . Core . | . . . . Reactor . | . . . . Propulsion 8 | 2 5 . 1 Treads 2 | . 2 . . Leg 6 | 2 3 . 1 Wheel . | . . . . Hover . | . . . . Flight . | . . . . Utility 4 | 1 3 . . Device 2 | . 2 . . Storage 2 | 1 1 . . Processor . | . . . . Hackware . | . . . . Protection . | . . . . Artifact . | . . . . Weapon 7 | 2 5 . . Energy Gun . | . . . . Energy Cannon 1 | . 1 . . Ballistic Gun 5 | 2 3 . . Ballistic Cannon . | . . . . Launcher . | . . . . Special Weapon . | . . . . Impact Weapon . | . . . . Slashing Weapon 1 | . 1 . . Piercing Weapon . | . . . . Special Melee Weapon . | . . . . Unidentified Prototypes . | . . . . Parts Lost 9 | . 5 . 4 Power 3 | . 2 . 1 Propulsion 3 | . 1 . 2 Utility 1 | . . . 1 Weapon 2 | . 2 . . Highest Loss Streak 2 | . 2 . 2 To Critical Strikes . | . . . . Average Backups 6 | 1 4 8 9 Power . | . . . . Propulsion 2 | . 2 4 4 Utility . | . . 1 1 Weapon 2 | . 1 3 3 Tool/Special . | . . . . Unused Backups 6 | . . . 6 Power . | . . . . Propulsion 2 | . . . 2 Utility 1 | . . . 1 Weapon 2 | . . . 2 Tool/Special 1 | . . . 1 Average Slot Usage (%) 97 | . 97 100 94 Engine 12 | . 13 14 11 Treads 2 | . 4 . . Leg 24 | . 22 28 27 Device 13 | . 13 14 11 Storage 14 | . 14 14 14 Energy Cannon 7 | . 3 14 14 Ballistic Gun 13 | . 22 . . Slashing Weapon 6 | . 2 14 14 Peak Build Rating 14 | 6 7 7 14 Average Rating 7 | 4 6 7 10 On Entrance 5 | . 6 7 7 Avg Prop Armor Cover (%) . | . . . . Naked Turns . | . . . . Heaviest Build 31 | 13 31 31 31 Greatest Support 40 | 20 40 20 20 Greatest Overweight (x) 10 | . 10 1 2 Average Overweight (x) . | . . 1 1 Largest Inventory Capacity 15 | 8 15 15 15 Average Capacity 14 | 6 14 15 15 Most Carried 15 | 3 10 8 15 Average Carried 6 | 1 4 8 11 Final Capacity 15 | 8 15 15 15 Final Carried 14 | 3 8 8 14 Class Distribution -------------------- 100% | Mutant Dominant Class ---------------- Mutant | -10/Materials Mutant | -10/Mines Mutant | -10/Exiles Resources | -11 -10 -10 -10 ----------- Run | Yrd Mat Min Exi Matter Collected 368 | 86 248 34 . Remotely . | . . . . Salvage Created 395 | . 395 . . Parts 27 | . 27 . . Haulers Intercepted 1 | . 1 . . Recyclers Shooed 1 | . 1 . . Parts Field Recycled . | . . . . Retrieved Matter . | . . . . Parts Self-Destructed . | . . . . Prevented . | . . . . Parts Restored . | . . . . Kills | -11 -10 -10 -10 ------- Run | Yrd Mat Min Exi Combat Hostiles Destroyed 9 | . 9 . . Guns 6 | . 6 . . Cannons 3 | . 3 . . Classes Destroyed 4 | . 4 . . Hauler 1 | . 1 . . Recycler 2 | . 2 . . Swarmer 6 | . 6 . . Grunt 3 | . 3 . . Best Kill Streak 3 | . 3 . . Combat Bots Only 3 | . 3 . . Max Kills in Single Turn 1 | . 1 . . Gunslinging . | . . . . Exploded . | . . . . Melee . | . . . . Uniques/NPCs Destroyed . | . . . . Combat | -11 -10 -10 -10 -------- Run | Yrd Mat Min Exi Hostile Shots Fired 174 | . 116 . 58 Missed 51 | . 27 . 24 Hits 123 | . 89 . 34 Projectile 123 | . 89 . 34 Critical Strikes 2 | . . . 2 Part Disruptions 1 | . . . 1 Damage Taken 1346 | . 828 . 518 Core 261 | . 156 . 105 Absorbed by Shields . | . . . . Core Remaining (%) 100 | 100 . . . Volleys Fired 44 | . 44 . . Largest 2 | . 2 . . Hottest 60 | . 60 . . Shots Fired 80 | . 80 . . Gun 72 | . 72 . . Cannon 8 | . 8 . . Launcher . | . . . . Special . | . . . . Kinetic 72 | . 72 . . Thermal 8 | . 8 . . Explosive . | . . . . Electromagnetic . | . . . . Robot Hit Streak 6 | . 6 . . Robot Miss Streak 2 | . 2 . . Penetration Max . | . . . . Secondary Targets . | . . . . Shots Hit Robots 36 | . 36 . . Core Hits 18 | . 18 . . Critical Kills . | . . . . Critical Parts Destroyed . | . . . . Critical Strikes . | . . . . Melee Attacks . | . . . . Impact . | . . . . Slashing . | . . . . Piercing . | . . . . Sneak Attacks . | . . . . Combat Hostiles . | . . . . Follow-up Attacks . | . . . . Damage Inflicted 490 | . 490 . . Guns 392 | . 392 . . Cannons 70 | . 70 . . Explosions . | . . . . Melee . | . . . . Ramming 28 | . 28 . . Kinetic 392 | . 392 . . Thermal 70 | . 70 . . Explosive . | . . . . Electromagnetic . | . . . . Impact . | . . . . Slashing . | . . . . Piercing . | . . . . Highest Corruption 4 | . . . 4 Average Corruption 3 | . . . 3 Corruption Purged . | . . . . Corruption Blocked . | . . . . Effects 2 | . . . 2 Energy Discharges 1 | . . . 1 Alerts 1 | . . . 1 Overload Shots . | . . . . Overflow Damage . | . . . . Projectiles . | . . . . Explosions . | . . . . Melee . | . . . . Knockbacks . | . . . . Impact . | . . . . Kinetic . | . . . . Secondary . | . . . . Self-Inflicted Damage . | . . . . Shots . | . . . . Rammed 3 | . 3 . . Targets Rammed 12 | . 12 . . Kicked 9 | . 9 . . Crushed . | . . . . Highest Temperature 6 | . 6 . . Average Temperature 6 | . 6 . . Received Heat Transfer 228 | . 228 . . Siege Activations . | . . . . Martial Activations . | . . . . Shielding Activations . | . . . . Robots Disrupted . | . . . . Combat Hostiles . | . . . . Robots Corrupted . | . . . . Combat Hostiles . | . . . . Parts Fried . | . . . . Impact Corruptions . | . . . . Robots Melted . | . . . . Combat Hostiles . | . . . . Parts Melted . | . . . . Heat Transferred 148 | . 148 . . Parts Sabotaged . | . . . . Parts Stolen . | . . . . Parts Stripped . | . . . . Power Chain Reactions . | . . . . Alert | -11 -10 -10 -10 ------- Run | Yrd Mat Min Exi Maximum Alert Level . | . . . . Low Security (%) 100 | 100 100 100 . Level 1 . | . . . . Level 2 . | . . . . Level 3 . | . . . . Level 4 . | . . . . Level 5 . | . . . . High Security . | . . . . Max Security . | . . . . Peak Influence 73 | . 73 3 . Initial 3 | . . 3 . Average 11 | . 14 . . Influence Increases 253 | . 253 . . Destroy 0b10 Robot/C 180 | . 180 . . Destroy 0b10 Robot/NC 15 | . 15 . . Destroy Leader 32 | . 32 . . Successful Hack 11 | . 11 . . Lose Combat Pursuer 15 | . 15 . . Influence Decreases 253 | . 243 10 . Entered New Map 7 | . . 7 . Time Decay 206 | . 203 3 . Lost Part 40 | . 40 . . Squads Dispatched 1 | . 1 . . Investigation . | . . . . Extermination . | . . . . Reinforcement 1 | . 1 . . Assault . | . . . . Garrison . | . . . . Intercept . | . . . . Searches Triggered . | . . . . Construction Impeded . | . . . . Haulers Reinforced . | . . . . Active Scanning Responses . | . . . . Cargo Convoy Interrupts . | . . . . Stealth | -11 -10 -10 -10 --------- Run | Yrd Mat Min Exi Distress Signals 2 | . 2 . . Communications Jammed . | . . . . Distress Signals . | . . . . Times Spotted 27 | . 17 . 10 Peak Tracking Total 7 | . 4 . 7 Tactical Retreats 1 | . 1 . . Traps | -11 -10 -10 -10 ------- Run | Yrd Mat Min Exi Traps Triggered 1 | . 1 . . Indirectly . | . . . . Trap Hack Attempts . | . . . . Triggered . | . . . . Disarmed . | . . . . Reprogrammed . | . . . . Reused . | . . . . Traps Extracted . | . . . . Installed . | . . . . Triggered . | . . . . Machines | -11 -10 -10 -10 ---------- Run | Yrd Mat Min Exi Machines Disabled . | . . . . Max in Single Turn . | . . . . Machines Repaired . | . . . . Machines Dismantled . | . . . . Machines Sabotaged . | . . . . Overloaded Fab Kills . | . . . . Hacking | -11 -10 -10 -10 --------- Run | Yrd Mat Min Exi Machines Accessed 7 | . 4 . 3 Terminals 4 | . 4 . . Fabricators . | . . . . Repair Stations . | . . . . Recycling Units . | . . . . Scanalyzers . | . . . . Garrison Access . | . . . . Total Hacks 24 | . 10 . 14 Successful 19 | . 5 . 14 Failed 5 | . 5 . . Catastrophic 1 | . 1 . . Database Lockouts . | . . . . Manual 13 | . 12 . 1 Terminals 10 | . 10 . . Fabricators . | . . . . Repair Stations . | . . . . Recycling Units . | . . . . Scanalyzers . | . . . . Garrison Access . | . . . . Terminal Hacks 14 | . . . 14 Record 13 | . . . 13 Proto ID Catalog 1 | . . . 1 Fabricator Hacks . | . . . . Repair Station Hacks . | . . . . Recycling Unit Hacks . | . . . . Scanalyzer . | . . . . Garrison Access Hacks . | . . . . Unauthorized Hacks 5 | . 5 . . Terminals 5 | . 5 . . Assimilate 4 | . 4 . . Botnet 1 | . 1 . . Fabricators . | . . . . Repair Stations . | . . . . Recycling Units . | . . . . Scanalyzers . | . . . . Garrison Access . | . . . . Data Cores Recovered . | . . . . Used . | . . . . Hacking Detections 3 | . 3 . . Full Trace Events 1 | . 1 . . Feedback Events . | . . . . Feedback Blocked . | . . . . Robot Schematics Acquired . | . . . . Robots Built . | . . . . Authchips . | . . . . Time . | . . . . Total Robot Build Rating . | . . . . Part Schematics Acquired . | . . . . Parts Built . | . . . . Authchips . | . . . . Time . | . . . . Total Part Build Rating . | . . . . Part Studies Acquired . | . . . . Parts Repaired . | . . . . Time . | . . . . Parts Recycled . | . . . . Recycled Matter . | . . . . Retrieved Matter . | . . . . Retrieved Components . | . . . . Parts Scanalyzed . | . . . . Part Schematics Acquired . | . . . . Parts Damaged . | . . . . Bothacking | -11 -10 -10 -10 ------------ Run | Yrd Mat Min Exi Used RIF Installer . | . . . . Robots Hacked . | . . . . Non-combat . | . . . . Combat . | . . . . Robot Hacks Applied . | . . . . Relay Couplers Released . | . . . . Fabnet Peak Effective % . | . . . . Robots Rewired . | . . . . Allies Hacked . | . . . . Hacks Repelled . | . . . . Allies | -11 -10 -10 -10 -------- Run | Yrd Mat Min Exi Total Allies . | . . . . Largest Group . | . . . . Highest-Rated Group . | . . . . Highest-Rated Ally . | . . . . Total Orders . | . . . . Ally Attacks . | . . . . Total Damage . | . . . . Kills . | . . . . Allies Corrupted . | . . . . Allies Melted . | . . . . Intel | -11 -10 -10 -10 ------- Run | Yrd Mat Min Exi Active Infowar (turns) 1155 | . 1155 . . Sensors 1155 | . 1155 . . Robot Analysis Total . | . . . . Derelict Logs Recovered . | . . . . Drone Launches . | . . . . Drone Recoveries . | . . . . Exploration | -11 -10 -10 -10 ------------- Run | Yrd Mat Min Exi Turns Passed 2685 | 72 1590 418 605 Spaces Moved 1194 | 56 613 213 312 Core 13 | 9 4 . . Treads 143 | . 143 . . Legs 1038 | 47 466 213 312 Wheels . | . . . . Hover . | . . . . Flight . | . . . . Fastest Speed 50 | 50 120 190 190 Average Speed 184 | 108 184 190 192 Slowest Speed 550 | 120 550 190 260 Overloaded Moves . | . . . . Propulsion Burnouts . | . . . . Robots Hopped . | . . . . Potential Cave-ins . | . . . . Cave-ins Triggered . | . . . . Exploration Rate (%) 46 | 4 75 48 59 Regions Visited 3 Branch Regions 2 Pre-discovered Areas . | . . . . Known Exits Taken . | . . . . Unknown Exits Taken 3 | 1 1 1 . Scrap Searched 1 | . . 1 . Spaces Dug . | . . . . Terrain Destroyed . | . . . . Melee . | . . . . Projectile . | . . . . AOE . | . . . . Terrain Rammed . | . . . . Walls Destroyed . | . . . . Machines Disabled . | . . . . Actions | -11 -10 -10 -10 --------- Run | Yrd Mat Min Exi Total 1594 | 64 987 227 316 Wait 293 | . 278 15 . Move 1191 | 55 612 212 312 Hop . | . . . . Pick Up 20 | 3 14 . 3 Fast Attach 8 | 6 2 . . Attach 14 | . 13 . 1 Detach 7 | . 7 . . Swap 1 | . 1 . . Drop 4 | . 4 . . Fire 44 | . 44 . . Melee . | . . . . Ram . | . . . . Kick 9 | . 9 . . Crush 3 | . 3 . . Escape Stasis . | . . . . Rewire . | . . . . Trap . | . . . . Miscellaneous . | . . . . Route ------- -11/Scrapyard -10/Materials (discovered 4 exits: [*Mat] / [*Min x2] / [*Sub]) -10/Mines -10/Exiles History --------- Turn | Location | Event 11 | -11/Scrapyard | Discovered new exit (range 15) 73 | -11/Scrapyard | Entered Materials 302 | -10/Materials | Build established: Mutant 361 | -10/Materials | Discovered new exit (range 4) 680 | -10/Materials | Discovered new exit (range 6) 776 | -10/Materials | Discovered new exit (range 7) 1157 | -10/Materials | Core integrity fell below 50% 1282 | -10/Materials | Discovered new exit (range 12) 1663 | -10/Materials | Entered Mines 2068 | -10/Mines | Deemed a non-threat by the Exiles lab entrance 2070 | -10/Mines | Discovered new exit (range 5) 2081 | -10/Mines | Entered Exiles 2129 | -10/Exiles | Met 8R-AWN 2163 | -10/Exiles | Met EX-HEX 2214 | -10/Exiles | Met EX-BIN 2243 | -10/Exiles | Aligned with FarCom system 2245 | -10/Exiles | Given EX-Vault access code 2328 | -10/Exiles | Opened EX-Vault 2361 | -10/Exiles | Found Flying Fortress v7 2366 | -10/Exiles | Found Field Lobotomy Kit 2376 | -10/Exiles | Found YOLO Cannon 2408 | -10/Exiles | Exiles lab attacked by MAIN.C 2575 | -10/Exiles | Core integrity fell below 20% 2686 | -10/Exiles | Destroyed by H-55 Commando with Gauss Rifle Last Messages --------------- get a lot worse here, go go go take the back way out!" Machine disabled. Ion Engine destroyed. Machine disabled. System corrupted: Energy discharge (-25). Heat Sink destroyed. P-60 Hacker resets P-60 Hacker, system corruption cleaned. P-60 Hacker destroyed. P-60 Hacker knocked back. P-60 Hacker destroyed. G-34 Mercenary destroyed. Slug penetrates DAS Turret. Machine disabled. Slug penetrates DAS Turret. P-60 Hacker knocked back. System corrupted: IFF burst signal emitted. Aluminum Leg destroyed. Penetrated by Slug. Map ----- +----------------------------------------------------+ | ???????????????????????????????????????#" | | ???????????????????????????????????????#" ## | | ???????????????????????????????????????#""""""## | | ???????????????????????????????????????##"###### | | ??????????????????????????????????????? "?????# | | ??????????????????????????????????????""" ?????# | | ??????????????????????????????????????""" ????## | | ????????????????????????????????????????" ????#" | | ????????????????????????????????????????##????#" | | ??????????????????????????????????????????????#" | | ??????????????????????????????????????????????#" | | ??????????????????????????????????????????????#" | | ??????????????????????????????????????????????#" | | ??????????????????????????????????????????????## | | ??????????????" ???????????????????????????????# | | ?????????????? ???????????????"??????????????#" | | ????????????? ??????????????""?????????????#" | | ????????????? z "????????????? ??""?????????#" | | ????????????? ##????????????" "?????????##" | | ??????????????? #???????????# #????????##"" | | ???????????????"" ######???### ###?######"" | | ???????????????#" """#####X# #"###""""""" | | ???????????????#" """""" "" | | ?????????????????# "" """ | | ??????????????????# " | | ????????????????????# @ | | ????????????????????### % | | ??????????????????????## g h ! | | ???????????????????????## = %!%* | | ????????????????????????##" l b %![*%!% | | ?????????????????????????#""" %%%[%%"" | | ????????????????????????##" |%###### | | ????????????????????????#"" % ""##????# | | ????????????????????????#""" """##?????? | | ???????????????????????#"" """##??????? | | ???????????????????????#"" ""#???????? | | ???????????????????????#" ###???##?? | | ???????????????????????#""" ## ### | | ???????????????????????#"" %% "" | | ???????????????????????##"" | | ????????????????????????#"""" | | ????????????????????????## | | ?????????????????????????#" " | | ?????????????????????????#"""" ""## | | ?????????????????????????#"" ""###?? | | ?????????????????????????#" """"##???? | | ?????????????????????????#""" """#????? | | ?????????????????????????## ""##????? | | ??????????????????????????#"" """#??????? | | ??????????????????????????##""" ##??????? | +----------------------------------------------------+ Best States ------------- Heat Dissipation 35 Energy Generation 10 Energy Capacity 250 Matter Stores 166 Matter Capacity 300 Sight Range 16 Robot Scan Range 14 Terrain Scan Density 10 Evasion (%) 55 Recoil Reduction 2 Item Schematics ----------------- None Robot Schematics ------------------ None Fabricated ------------ Nothing Repaired ---------- Nothing Studied --------- None Alien Tech Used ----------------- None Achievements -------------- None Challenges ------------ None Game ------ Seed ActuatorSeismicArmor Manual? 0 Play Time 00:29:36 Cumulative 33.4 hours Start 2026.03.26 @ 20:38:07 End 2026.03.27 @ 12:02:13 Sessions 3 Manual Loads 0 Difficulty Rogue Special Mode None Game No. 89 Rogue 87 Adventurer 2 Explorer 0 Win Type - Total 0 Types 0/0/0/0/0/0/0/0/0/0 Lore% 7 Gallery% 19 Achievement% 17 Wizard Run 0 Options --------- Layout 1 ASCII 0 Keyboard 1 Movement Numpad Keybinds 0 Fullscreen 2 Font 32/SmallcapsGlow Map View 50x35 Zoom Use 0% Tactical HUD 0 Map Filters NONE Filters NONE Steam 1 RUN: 6afe0b21-1143-49a4-9196-61ed76c07a00